fUSD/lending_fUSD_20250716
["ID","MTS","AMOUNT","RATE_DAILY","PERIOD"]
[372427331,1752640261047,-5558.51,0.00021917,2]
[372427332,1752640261058,-4696.68,0.00021917,2]
[372427333,1752640261067,-886.3,0.00021917,2]
[372427334,1752640261078,-3216.41,0.00021917,2]
[372427335,1752640261088,-460.0,0.00021917,2]
[372427336,1752640261097,-460.0,0.00021917,2]
[372427337,1752640261107,-461.97226822,0.00021917,2]
[372427338,1752640261117,-1900.67,0.00021917,2]
[372427339,1752640261126,-461.68048605,0.00021917,2]
[372427340,1752640261135,-460.97342545,0.00021917,2]
[372427341,1752640261144,-888.55,0.00021917,2]
[372427342,1752640261153,-460.0,0.00021917,2]
[372427343,1752640261162,-2023.43,0.00021917,2]
[372427344,1752640261171,-213.48614129,0.00021917,2]
[372427345,1752640261180,-5905.09,0.00021917,2]
[372427346,1752640261190,-460.0,0.00021917,2]
[372427347,1752640261199,-8239.59,0.00021917,2]
[372427348,1752640261208,-151.0,0.00021917,2]
[372427349,1752640261217,-283.214635,0.00021917,2]
[372427350,1752640261227,-151.0,0.00021917,2]
[372427351,1752640261236,-151.0,0.00021917,2]
[372427353,1752640261245,-1300.34,0.00021917,2]
[372427354,1752640261254,-151.0,0.00021917,2]
[372427355,1752640261264,-18452.63,0.00021917,2]
[372427356,1752640261273,-460.0,0.00021917,2]
[372427357,1752640261282,-1222.82,0.00021917,2]
[372427358,1752640261292,-3105.51,0.00021917,2]
[372427359,1752640261302,-8473.22,0.00021917,2]
[372427360,1752640261312,-460.0,0.00021917,2]
[372427361,1752640261321,-460.0,0.00021917,2]
[372427362,1752640261332,-5546.15,0.00021917,2]
[372427363,1752640261341,-460.73339653,0.00021917,2]
[372427364,1752640261351,-4436.64,0.00021917,2]
[372427365,1752640261363,-1447.28,0.00021917,2]
[372427366,1752640261373,-1589.44,0.00021917,2]
[372427367,1752640261383,-520.43,0.00021917,2]
[372427368,1752640261393,-460.0,0.00021917,2]
[372427369,1752640261403,-460.0,0.00021917,2]
[372427370,1752640261414,-460.0,0.00021917,2]
[372427371,1752640261423,-5182.38,0.00021917,2]
[372427372,1752640261433,-460.0,0.00021917,2]
[372427373,1752640261443,-460.0,0.00021917,2]
[372427374,1752640261455,-460.0,0.00021917,2]
[372427375,1752640261465,-460.0,0.00021917,2]
[372427376,1752640261476,-1859.06,0.00021917,2]
[372427377,1752640261486,-1075.98,0.00021917,2]
[372427378,1752640261496,-460.0,0.00021917,2]
[372427379,1752640261506,-1651.68,0.00021917,2]
[372427380,1752640261515,-1075.98,0.00021917,2]
[372427381,1752640261526,-1075.98,0.00021917,2]
[372427382,1752640261537,-460.0,0.00021917,2]
[372427383,1752640261548,-1075.98,0.00021917,2]
[372427384,1752640261557,-1075.98,0.00021917,2]
[372427385,1752640261567,-7134.42,0.00021917,2]
[372427386,1752640261578,-1075.98,0.00021917,2]
[372427387,1752640261588,-460.0,0.00021917,2]
[372427388,1752640261599,-460.0,0.00021917,2]
[372427389,1752640261610,-4602.91,0.00021917,2]
[372427390,1752640261621,-1075.98,0.00021917,2]
[372427391,1752640261631,-1075.98,0.00021917,2]
[372427392,1752640261643,-1075.98,0.00021917,2]
[372427393,1752640261653,-151.0,0.00021917,2]
[372427394,1752640261663,-61924.51,0.00021917,2]
[372427395,1752640261672,-1075.98,0.00021917,2]
[372427396,1752640261682,-151.0,0.00021917,2]
[372427397,1752640261691,-1311.28,0.00021917,2]
[372427398,1752640261700,-1435.35,0.00021917,2]
[372427399,1752640261710,-151.0,0.00021917,2]
[372427400,1752640261720,-1435.35,0.00021917,2]
[372427401,1752640261730,-151.0,0.00021917,2]
[372427402,1752640261739,-460.0,0.00021917,2]
[372427403,1752640261749,-384.12531597,0.00021917,2]
[372427404,1752640261759,-1435.35,0.00021917,2]
[372427405,1752640261770,-1435.35,0.00021917,2]
[372427406,1752640261781,-1435.35,0.00021917,2]
[372427407,1752640261790,-151.0,0.00021917,2]
[372427408,1752640261801,-1435.35,0.00021917,2]
[372427409,1752640261810,-151.0,0.00021917,2]
[372427410,1752640261820,-151.0,0.00021917,2]
[372427411,1752640261829,-1435.35,0.00021917,2]
[372427412,1752640261839,-587.47,0.00021917,2]
[372427413,1752640261848,-151.0,0.00021917,2]
[372427414,1752640261857,-1435.35,0.00021917,2]
[372427415,1752640261867,-460.0,0.00021917,2]
[372427416,1752640261876,-151.0,0.00021917,2]
[372427417,1752640261889,-1435.35,0.00021917,2]
[372427418,1752640261898,-280.697268,0.00021917,2]
[372427419,1752640261907,-460.0,0.00021917,2]
[372427420,1752640261916,-460.0,0.00021917,2]
[372427421,1752640261927,-460.0,0.00021917,2]
[372427422,1752640261937,-5089.91,0.00021917,2]
[372427423,1752640261948,-2915.79,0.00021917,2]
[372427424,1752640261959,-460.0,0.00021917,2]
[372427425,1752640261968,-5462.03,0.00021917,2]
[372427426,1752640261979,-29269.35,0.00021917,2]
[372427427,1752640261990,-2555.41,0.00021917,2]
[372427428,1752640262000,-460.0,0.00021917,2]
[372427429,1752640262010,-200.0,0.00021917,2]
[372427430,1752640262019,-1639.81,0.00021917,2]
[372427431,1752640262031,-460.0,0.00021917,2]
[372427432,1752640262043,-461.97131506,0.00021917,2]
[372427433,1752640262053,-1726.9,0.00021917,2]
[372427434,1752640262063,-460.0,0.00021917,2]
[372427435,1752640262072,-460.0,0.00021917,2]
[372427436,1752640262081,-5498.91,0.00021917,2]
[372427437,1752640262091,-461.07437066,0.00021917,2]
[372427438,1752640262100,-460.0,0.00021917,2]
[372427439,1752640262110,-1918.98,0.00021917,2]
[372427440,1752640262121,-460.0,0.00021917,2]
[372427441,1752640262132,-830.56,0.00021917,2]
[372427442,1752640262143,-16818.77,0.00021917,2]
[372427443,1752640262154,-1008.24,0.00021917,2]
[372427444,1752640262164,-460.0,0.00021917,2]
[372427445,1752640262174,-460.0,0.00021917,2]
[372427446,1752640262183,-460.0,0.00021917,2]
[372427447,1752640262192,-484.14,0.00021917,2]
[372427448,1752640262201,-151.0,0.00021917,2]
[372427449,1752640262211,-460.0,0.00021917,2]
[372427450,1752640262220,-460.0,0.00021917,2]
[372427451,1752640262229,-2199.51,0.00021917,2]
[372427452,1752640262239,-1180.82,0.00021917,2]
[372427453,1752640262248,-1006.94,0.00021917,2]
[372427454,1752640262257,-460.0,0.00021917,2]
[372427455,1752640262267,-460.0,0.00021917,2]
[372427456,1752640262278,-2203.04,0.00021917,2]
[372427457,1752640262288,-3946.85,0.00021917,2]
[372427458,1752640262297,-8253.58,0.00021917,2]
[372427459,1752640262307,-3486.03,0.00021917,2]
[372427460,1752640262318,-5122.16,0.00021917,2]
[372427461,1752640262328,-641.26,0.00021917,2]
[372427462,1752640262338,-1776.91,0.00021917,2]
[372427463,1752640262348,-2216.8,0.00021917,2]
[372427464,1752640262358,-460.0,0.00021917,2]
[372427465,1752640262367,-2678.44,0.00021917,2]
[372427466,1752640262376,-2322.46,0.00021917,2]
[372427467,1752640262388,-460.0,0.00021917,2]
[372427468,1752640262398,-423.35499958,0.00021917,2]
[372427469,1752640262409,-460.20085256,0.00021917,2]
[372427470,1752640262420,-151.0,0.00021917,2]
[372427471,1752640262430,-151.0,0.00021917,2]
[372427472,1752640262439,-161.014618,0.00021917,2]
[372427473,1752640262449,-3187.26,0.00021917,2]
[372427474,1752640262458,-1718.98,0.00021917,2]
[372427475,1752640262467,-460.0,0.00021917,2]
[372427476,1752640262476,-460.0,0.00021917,2]
[372427477,1752640262486,-460.0,0.00021917,2]
[372427478,1752640262496,-513.07,0.00021917,2]
[372427479,1752640262505,-460.0,0.00021917,2]
[372427480,1752640262517,-460.0,0.00021917,2]
[372427481,1752640262526,-460.0,0.00021917,2]
[372427482,1752640262536,-542.2,0.00021917,2]
[372427483,1752640262546,-2817.23,0.00021917,2]
[372427484,1752640262556,-223.356858,0.00021917,2]
[372427485,1752640262566,-500.99480526,0.00021917,2]
[372427486,1752640262576,-1302.9,0.00021917,2]
[372427487,1752640262586,-460.0,0.00021917,2]
[372427488,1752640262598,-161.25523575,0.00021917,2]
[372427489,1752640262609,-1553.98,0.00021917,2]
[372427490,1752640262619,-512.89,0.00021917,2]
[372427491,1752640262630,-7789.41,0.00021917,2]
[372427492,1752640262640,-460.0,0.00021917,2]
[372427493,1752640262650,-570.89,0.00021917,2]
[372427494,1752640262659,-2913.36,0.00021917,2]
[372427495,1752640262668,-645.67,0.00021917,2]
[372427496,1752640262679,-460.0,0.00021917,2]
[372427497,1752640262688,-4656.37,0.00021917,2]
[372427498,1752640262698,-151.0,0.00021918,2]
[372427499,1752640262707,-151.0,0.00021918,2]
[372427500,1752640262717,-172.448359,0.00021918,2]
[372427501,1752640262726,-1000.0,0.00021918,3]
[372427502,1752640262735,-1000.0,0.00021918,3]
[372427503,1752640262745,-1000.0,0.00021918,3]
[372427504,1752640262755,-1000.0,0.00021918,3]
[372427505,1752640262764,-1000.0,0.00021918,3]
[372427506,1752640262773,-1000.0,0.00021918,3]
[372427507,1752640262783,-1000.0,0.00021918,3]
[372427508,1752640262792,-1000.0,0.00021918,3]
[372427509,1752640262801,-1000.0,0.00021918,3]
[372427510,1752640262810,-1000.0,0.00021918,3]
[372427511,1752640262820,-1000.0,0.00021918,3]
[372427512,1752640262829,-1000.0,0.00021918,3]
[372427513,1752640262839,-1000.0,0.00021918,3]
[372427514,1752640262849,-1000.0,0.00021918,3]
[372427515,1752640262859,-1000.0,0.00021918,3]
[372427516,1752640262868,-1000.0,0.00021918,3]
[372427517,1752640262878,-1000.0,0.00021918,3]
[372427518,1752640262888,-1000.0,0.00021918,3]
[372427519,1752640262897,-1000.0,0.00021918,3]
[372427520,1752640262907,-1000.0,0.00021918,3]
[372427521,1752640262921,-1000.0,0.00021918,3]
[372427522,1752640262931,-1000.0,0.00021918,3]
[372427523,1752640262942,-1000.0,0.00021918,3]
[372427524,1752640262951,-1000.0,0.00021918,3]
[372427525,1752640262961,-1000.0,0.00021918,3]
[372427526,1752640262970,-1000.0,0.00021918,3]
[372427527,1752640262979,-1000.0,0.00021918,3]
[372427528,1752640262988,-1000.0,0.00021918,3]
[372427529,1752640262997,-1000.0,0.00021918,3]
[372427530,1752640263008,-1000.0,0.00021918,3]
[372427531,1752640263018,-1000.0,0.00021918,3]
[372427532,1752640263029,-1000.0,0.00021918,3]
[372427533,1752640263045,-1000.0,0.00021918,3]
[372427534,1752640263057,-1000.0,0.00021918,3]
[372427535,1752640263066,-1000.0,0.00021918,3]
[372427536,1752640263078,-1000.0,0.00021918,3]
[372427537,1752640263088,-1000.0,0.00021918,3]
[372427538,1752640263097,-1000.0,0.00021918,3]
[372427539,1752640263108,-1000.0,0.00021918,3]
[372427540,1752640263118,-1000.0,0.00021918,3]
[372427541,1752640263127,-1000.0,0.00021918,3]
[372427542,1752640263136,-1000.0,0.00021918,3]
[372427543,1752640263146,-1000.0,0.00021918,3]
[372427544,1752640263155,-1000.0,0.00021918,3]
[372427545,1752640263164,-1000.0,0.00021918,3]
[372427546,1752640263174,-1000.0,0.00021918,3]
[372427547,1752640263184,-1000.0,0.00021918,3]
[372427548,1752640263193,-1000.0,0.00021918,3]
[372427549,1752640263202,-1000.0,0.00021918,3]
[372427550,1752640263216,-1000.0,0.00021918,3]
[372427551,1752640263226,-1000.0,0.00021918,3]
[372427552,1752640263235,-1000.0,0.00021918,3]
[372427553,1752640263245,-1000.0,0.00021918,3]
[372427554,1752640263255,-1000.0,0.00021918,3]
[372427555,1752640263264,-1000.0,0.00021918,3]
[372427556,1752640263274,-1000.0,0.00021918,3]
[372427557,1752640263284,-1000.0,0.00021918,3]
[372427558,1752640263294,-1000.0,0.00021918,3]
[372427559,1752640263304,-736.0,0.00021918,3]
[372427560,1752640263313,-5000.0,0.00021918,2]
[372427561,1752640263323,-151.0,0.00021918,2]
[372427562,1752640263339,-151.0,0.00021918,2]
[372427563,1752640263349,-151.0,0.00021918,2]
[372427564,1752640263358,-151.0,0.00021918,2]
[372427565,1752640263368,-288.498733,0.00021918,2]
[372427566,1752640263377,-200.0,0.00021918,7]
[372427567,1752640263387,-643.67223166,0.00021918,3]
[372427568,1752640263396,-210.72748344,0.00021918,3]
[372427569,1752640263405,-150.0,0.00021918,2]
[372427570,1752640263415,-447.87393831,0.00021918,3]
[372427571,1752640263424,-221.098143,0.00021918,7]
[372427572,1752640263433,-221.098152,0.00021918,7]
[372427573,1752640263443,-151.0,0.00021918,7]
[372427574,1752640263452,-500.0,0.00021918,2]
[372427575,1752640263462,-539.0,0.00021918,2]
[372427576,1752640263471,-500.0,0.00021918,2]
[372427577,1752640263480,-150.0,0.00021918,2]
[372427578,1752640263490,-150.0,0.00021918,2]
[372427579,1752640263500,-157.42071008,0.0002192,2]
[372427580,1752640263509,-610.72263476,0.00021928,2]
[372427581,1752640263519,-3508.39596868,0.00021934,6]
[372427582,1752640263528,-241.11355937,0.00021954,4]
[372427583,1752640263538,-241.11355937,0.00021954,4]
[372427584,1752640263547,-241.11355937,0.00021954,4]
[372427585,1752640263558,-241.11355937,0.00021954,4]
[372427586,1752640263567,-241.11355937,0.00021954,4]
[372427587,1752640263577,-241.11355937,0.00021954,4]
[372427588,1752640263586,-241.11355937,0.00021954,4]
[372427589,1752640263595,-241.11355937,0.00021954,4]
[372427590,1752640263605,-241.11355937,0.00021954,4]
[372427591,1752640263615,-241.11355937,0.00021954,4]
[372427592,1752640263624,-241.11355937,0.00021954,4]
[372427593,1752640263633,-241.11355937,0.00021954,4]
[372427594,1752640263643,-241.11355937,0.00021954,4]
[372427595,1752640263652,-241.11355937,0.00021954,4]
[372427596,1752640263662,-241.11355937,0.00021954,4]
[372427597,1752640263672,-241.11355937,0.00021954,4]
[372427598,1752640263682,-241.11355937,0.00021954,4]
[372427599,1752640263691,-242.01653799,0.00021954,4]
[372427600,1752640263701,-242.01653799,0.00021954,4]
[372427601,1752640263711,-242.01653799,0.00021954,4]
[372427602,1752640263720,-242.01653799,0.00021954,4]
[372427603,1752640263730,-242.01653799,0.00021954,4]
[372427604,1752640263739,-242.01653799,0.00021954,4]
[372427605,1752640263749,-242.01653799,0.00021954,4]
[372427606,1752640263758,-242.01653799,0.00021954,4]
[372427607,1752640263768,-242.01653799,0.00021954,4]
[372427608,1752640263778,-242.01653799,0.00021954,4]
[372427609,1752640263790,-242.01653799,0.00021954,4]
[372427610,1752640263800,-242.01653799,0.00021954,4]
[372427611,1752640263810,-242.01653799,0.00021954,4]
[372427612,1752640263820,-242.01653799,0.00021954,4]
[372427613,1752640263829,-242.01653799,0.00021954,4]
[372427614,1752640263839,-242.01653799,0.00021954,4]
[372427615,1752640263848,-242.01653799,0.00021954,4]
[372427616,1752640263859,-258.581617,0.00021954,4]
[372427617,1752640263868,-258.581617,0.00021954,4]
[372427618,1752640263878,-258.581617,0.00021954,4]
[372427619,1752640263888,-258.581617,0.00021954,4]
[372427620,1752640263898,-258.581617,0.00021954,4]
[372427621,1752640263908,-258.581617,0.00021954,4]
[372427622,1752640263917,-258.581617,0.00021954,4]
[372427623,1752640263927,-258.581617,0.00021954,4]
[372427624,1752640263936,-258.581617,0.00021954,4]
[372427625,1752640263946,-258.581617,0.00021954,4]
[372427626,1752640263955,-258.581617,0.00021954,4]
[372427627,1752640263968,-258.581617,0.00021954,4]
[372427628,1752640263977,-258.581617,0.00021954,4]
[372427629,1752640263987,-258.581617,0.00021954,4]
[372427630,1752640263996,-258.581617,0.00021954,4]
[372427631,1752640264006,-258.581617,0.00021954,4]
[372427632,1752640264015,-258.581617,0.00021954,4]
[372427633,1752640264025,-183.32432835,0.00021954,2]
[372427634,1752640264038,-177.64336511,0.00021954,2]
[372427635,1752640264048,-391.21506496,0.00021954,2]
[372427636,1752640264057,-5041.47399386,0.00021954,2]
[372427637,1752640264067,-610.72263476,0.00021954,2]
[372427638,1752640264076,-415.55504371,0.00021954,2]
[372427639,1752640264087,-166.75489779,0.00021954,4]
[372427640,1752640264096,-2298.52,0.00021962,2]
[372427641,1752640264106,-500.0,0.00021962,2]
[372427642,1752640264116,-200.49229882,0.00021965,2]
[372427643,1752640264125,-500.0,0.00021965,2]
[372427644,1752640264135,-150.0,0.00021965,2]
[372427645,1752640264145,-504.18309183,0.00021973,2]
[372427646,1752640264154,-500.0,0.00021973,2]
[372427647,1752640264163,-500.0,0.00021973,2]
[372427648,1752640264173,-500.0,0.00021973,2]
[372427649,1752640264182,-500.0,0.00021973,2]
[372427650,1752640264192,-504.53778829,0.00021973,2]
[372427651,1752640264202,-159.65964935,0.00021973,2]
[372427652,1752640264212,-504.57677426,0.00021973,2]
[372427653,1752640264222,-500.62068923,0.00021973,2]
[372427654,1752640264231,-503.49336062,0.00021973,2]
[372427655,1752640264241,-500.0,0.00021973,2]
[372427656,1752640264251,-500.0,0.00021973,2]
[372427657,1752640264260,-501.17518061,0.00021973,2]
[372427658,1752640264270,-503.22822954,0.00021973,2]
[372427659,1752640264280,-645.52834518,0.00021973,2]
[372427660,1752640264289,-503.10552444,0.00021973,2]
[372427661,1752640264299,-151.0,0.00021973,7]
[372427662,1752640264308,-151.0,0.00021973,7]
[372427663,1752640264318,-151.06,0.00021981,2]
[372427664,1752640264327,-650.38,0.00021999,2]
[372427665,1752640264337,-521.5,0.00021999,2]
[372427666,1752640264347,-782.3,0.00021999,2]
[372427667,1752640264357,-1435.35,0.00021999,2]
[372427668,1752640264367,-1034.71516685,0.00022,2]
[372427669,1752640264377,-500.0,0.00022,2]
[372427670,1752640264387,-2542.45194215,0.00022,5]
[372427671,1752640264396,-5432.86525143,0.00022,4]
[372427672,1752640264406,-150.0,0.00022,2]
[372427673,1752640264416,-500.0,0.00022,2]
[372427674,1752640264425,-500.0,0.00022,2]
[372427675,1752640264435,-500.0,0.00022,2]
[372427676,1752640264445,-670.23,0.00022,2]
[372427677,1752640264455,-3000.0,0.00022,2]
[372427678,1752640264463,-3000.0,0.00022,2]
[372427679,1752640264473,-3000.0,0.00022,2]
[372427680,1752640264482,-2508.25,0.00022,2]
[372427681,1752640264491,-239.0,0.00022,2]
[372427682,1752640264500,-849.0,0.00022,2]
[372427683,1752640264509,-361.0,0.00022,2]
[372427684,1752640264519,-5002.66819893,0.00022,2]
[372427685,1752640264528,-2500.48020032,0.00022,2]
[372427686,1752640264538,-5511.0,0.00022,5]
[372427687,1752640264547,-241.11355937,0.00022006,4]
[372427688,1752640264559,-242.01653799,0.00022006,4]
[372427689,1752640264568,-258.581617,0.00022006,4]
[372427690,1752640264578,-3946.79017167,0.0002201,2]
[372427691,1752640264587,-3508.39596868,0.00022038,6]
[372427692,1752640264597,-500.0,0.00022043,2]
[372427693,1752640264606,-500.0,0.00022043,2]
[372427694,1752640264615,-877.25,0.00022043,2]
[372427695,1752640264624,-500.0,0.00022043,2]
[372427696,1752640264634,-1075.98,0.00022043,2]
[372427697,1752640264643,-224.01345879,0.00022044,2]
[372427698,1752640264652,-151.0,0.00022044,7]
[372427699,1752640264661,-1413.56,0.00022044,2]
[372427700,1752640264671,-2298.52,0.00022048,2]
[372427701,1752640264680,-500.0,0.00022048,2]
[372427702,1752640264689,-650.38,0.00022052,2]
[372427703,1752640264698,-782.3,0.00022052,2]
[372427704,1752640264707,-150.0,0.00022052,2]
[372427705,1752640264717,-628.66339825,0.00022053,2]
[372427706,1752640264727,-171.4992818,0.00022053,2]
[372427707,1752640264736,-165.02294225,0.00022053,2]
[372427708,1752640264746,-150.8,0.00022053,2]
[372427709,1752640264755,-650.38,0.00022053,2]
[372427710,1752640264765,-650.38,0.00022053,2]
[372427711,1752640264775,-650.38,0.00022053,2]
[372427712,1752640264785,-650.38,0.00022053,2]
[372427713,1752640264794,-650.38,0.00022053,2]
[372427714,1752640264805,-650.38,0.00022053,2]
[372427715,1752640264816,-650.38,0.00022053,2]
[372427716,1752640264825,-650.38,0.00022053,2]
[372427717,1752640264835,-650.38,0.00022053,2]
[372427718,1752640264845,-650.61025427,0.00022053,2]
[372427719,1752640264860,-500.0,0.00022053,2]
[372427720,1752640264871,-500.0,0.00022053,2]
[372427721,1752640264881,-500.0,0.00022053,2]
[372427722,1752640264892,-500.0,0.00022053,2]
[372427723,1752640264903,-500.0,0.00022053,2]
[372427724,1752640264912,-500.0,0.00022053,2]
[372427725,1752640264924,-500.0,0.00022053,2]
[372427726,1752640264933,-500.0,0.00022053,2]
[372427727,1752640264943,-500.0,0.00022053,2]
[372427728,1752640264950,-500.0,0.00022053,2]
[372427729,1752640264959,-500.0,0.00022053,2]
[372427730,1752640264967,-500.0,0.00022053,2]
[372427731,1752640264975,-500.0,0.00022053,2]
[372427732,1752640264984,-500.0,0.00022053,2]
[372427733,1752640264991,-500.0,0.00022053,2]
[372427734,1752640264999,-500.0,0.00022053,2]
[372427735,1752640265009,-500.0,0.00022053,2]
[372427736,1752640265018,-510.33223738,0.00022053,2]
[372427737,1752640265028,-500.0,0.00022053,2]
[372427738,1752640265038,-500.0,0.00022053,2]
[372427739,1752640265046,-500.0,0.00022053,2]
[372427740,1752640265055,-528.92743167,0.00022053,2]
[372427741,1752640265061,-2298.52,0.00022053,2]
[372427742,1752640265070,-2298.52,0.00022053,2]
[372427743,1752640265077,-2298.52,0.00022053,2]
[372427744,1752640265086,-2298.52,0.00022053,2]
[372427745,1752640265095,-2298.52,0.00022053,2]
[372427746,1752640265233,-2298.52,0.00022053,2]
[372427747,1752640265246,-2298.52,0.00022053,2]
[372427748,1752640265256,-2298.52,0.00022053,2]
[372427749,1752640265268,-2298.52,0.00022053,2]
[372427750,1752640265278,-2298.65420467,0.00022053,2]
[372427751,1752640265288,-500.0,0.00022053,2]
[372427752,1752640265300,-500.0,0.00022053,2]
[372427753,1752640265310,-500.0,0.00022053,2]
[372427754,1752640265319,-500.0,0.00022053,2]
[372427755,1752640265329,-500.0,0.00022053,2]
[372427756,1752640265339,-500.0,0.00022053,2]
[372427757,1752640265348,-500.0,0.00022053,2]
[372427758,1752640265357,-500.0,0.00022053,2]
[372427759,1752640265369,-500.0,0.00022053,2]
[372427760,1752640265379,-500.0,0.00022053,2]
[372427761,1752640265389,-500.0,0.00022053,2]
[372427762,1752640265399,-500.0,0.00022053,2]
[372427763,1752640265408,-500.0,0.00022053,2]
[372427764,1752640265417,-500.0,0.00022053,2]
[372427765,1752640265427,-500.0,0.00022053,2]
[372427766,1752640265436,-500.0,0.00022053,2]
[372427767,1752640265446,-500.0,0.00022053,2]
[372427768,1752640265456,-527.81,0.00022053,2]
[372427769,1752640265465,-527.81,0.00022053,2]
[372427770,1752640265475,-527.81,0.00022053,2]
[372427771,1752640265485,-527.81,0.00022053,2]
[372427772,1752640265495,-527.81,0.00022053,2]
[372427773,1752640265504,-527.81,0.00022053,2]
[372427774,1752640265514,-527.81,0.00022053,2]
[372427775,1752640265523,-527.81,0.00022053,2]
[372427776,1752640265533,-527.81,0.00022053,2]
[372427777,1752640265543,-624.89,0.00022053,2]
[372427778,1752640265552,-624.89,0.00022053,2]
[372427779,1752640265561,-624.89,0.00022053,2]
[372427780,1752640265571,-624.89,0.00022053,2]
[372427781,1752640265580,-624.89,0.00022053,2]
[372427782,1752640265590,-624.89,0.00022053,2]
[372427783,1752640265599,-624.89,0.00022053,2]
[372427784,1752640265608,-624.89,0.00022053,2]
[372427785,1752640265618,-624.89,0.00022053,2]
[372427786,1752640265629,-500.0,0.00022053,2]
[372427787,1752640265638,-500.0,0.00022053,2]
[372427788,1752640265648,-500.0,0.00022053,2]
[372427789,1752640265657,-500.0,0.00022053,2]
[372427790,1752640265666,-500.0,0.00022053,2]
[372427791,1752640265676,-500.0,0.00022053,2]
[372427792,1752640265685,-360.57,0.00022053,2]
[372427793,1752640265695,-521.5,0.00022053,2]
[372427794,1752640265705,-521.5,0.00022053,2]
[372427795,1752640265714,-521.5,0.00022053,2]
[372427796,1752640265724,-521.5,0.00022053,2]
[372427797,1752640265733,-521.5,0.00022053,2]
[372427798,1752640265743,-521.5,0.00022053,2]
[372427799,1752640265752,-521.5,0.00022053,2]
[372427800,1752640265762,-521.5,0.00022053,2]
[372427801,1752640265771,-521.5,0.00022053,2]
[372427802,1752640265781,-500.0,0.00022053,2]
[372427803,1752640265790,-500.0,0.00022053,2]
[372427804,1752640265800,-500.0,0.00022053,2]
[372427805,1752640265810,-305.64800004,0.00022053,2]
[372427806,1752640265819,-500.0,0.00022053,2]
[372427807,1752640265829,-500.0,0.00022053,2]
[372427808,1752640265838,-500.0,0.00022053,2]
[372427809,1752640265848,-500.0,0.00022053,2]
[372427810,1752640265857,-500.0,0.00022053,2]
[372427811,1752640265867,-782.3,0.00022053,2]
[372427812,1752640265878,-500.0,0.00022053,2]
[372427813,1752640265888,-782.3,0.00022053,2]
[372427814,1752640265899,-500.0,0.00022053,2]
[372427815,1752640265909,-782.3,0.00022053,2]
[372427816,1752640265919,-500.0,0.00022053,2]
[372427817,1752640265928,-782.3,0.00022053,2]
[372427818,1752640265938,-507.0613143,0.00022053,2]
[372427819,1752640265948,-782.3,0.00022053,2]
[372427820,1752640265958,-782.3,0.00022053,2]
[372427821,1752640265967,-782.3,0.00022053,2]
[372427822,1752640265977,-782.3,0.00022053,2]
[372427823,1752640265986,-782.3,0.00022053,2]
[372427824,1752640265996,-782.33180759,0.00022053,2]
[372427825,1752640266005,-877.25,0.00022053,2]
[372427826,1752640266015,-877.25,0.00022053,2]
[372427827,1752640266025,-877.25,0.00022053,2]
[372427828,1752640266037,-877.25,0.00022053,2]
[372427829,1752640266047,-877.25,0.00022053,2]
[372427830,1752640266057,-877.25,0.00022053,2]
[372427831,1752640266067,-877.25,0.00022053,2]